lending/lending_fUSD_20240411
["ID","MTS","AMOUNT","RATE_DAILY","PERIOD"]
[322181484,1712866241253,-500.0,0.00027397,2]
[322181486,1712866241263,-500.0,0.00027397,2]
[322181488,1712866241273,-500.0,0.00027397,2]
[322181490,1712866241282,-500.0,0.00027397,2]
[322181492,1712866241291,-638.49,0.00027397,2]
[322181494,1712866241301,-500.0,0.00027397,2]
[322181496,1712866241314,-1009.75,0.00027397,2]
[322181498,1712866241324,-500.0,0.00027397,2]
[322181500,1712866241334,-500.0,0.00027397,2]
[322181502,1712866241343,-500.16,0.00027397,2]
[322181504,1712866241354,-500.0,0.00027397,2]
[322181506,1712866241363,-500.0,0.00027397,2]
[322181508,1712866241372,-500.0,0.00027397,2]
[322181510,1712866241382,-496.74435236,0.00027397,2]
[322181512,1712866241392,-538.21,0.00027397,2]
[322181514,1712866241402,-1341.17,0.00027397,2]
[322181516,1712866241411,-311.5290067,0.00027397,2]
[322181518,1712866241420,-862.75,0.00027397,2]
[322181520,1712866241430,-500.0,0.00027397,2]
[322181522,1712866241439,-716.18,0.00027397,2]
[322181524,1712866241449,-500.0,0.00027397,2]
[322181526,1712866241458,-500.0,0.00027397,2]
[322181528,1712866241468,-500.0,0.00027397,2]
[322181530,1712866241477,-1295.66,0.00027397,2]
[322181532,1712866241487,-500.0,0.00027397,2]
[322181534,1712866241496,-887.01,0.00027397,2]
[322181536,1712866241505,-500.0,0.00027397,2]
[322181538,1712866241514,-673.7,0.00027397,2]
[322181540,1712866241524,-1526.25,0.00027397,2]
[322181542,1712866241533,-500.0,0.00027397,2]
[322181544,1712866241542,-500.0,0.00027397,2]
[322181546,1712866241552,-1187.02,0.00027397,2]
[322181548,1712866241561,-500.0,0.00027397,2]
[322181550,1712866241571,-500.0,0.00027397,2]
[322181552,1712866241580,-500.0,0.00027397,2]
[322181554,1712866241593,-646.56,0.00027397,2]
[322181556,1712866241602,-500.0,0.00027397,2]
[322181558,1712866241611,-500.0,0.00027397,2]
[322181560,1712866241621,-500.0,0.00027397,2]
[322181562,1712866241631,-500.0,0.00027397,2]
[322181565,1712866241640,-772.5,0.00027397,2]
[322181567,1712866241650,-500.0,0.00027397,2]
[322181569,1712866241659,-1678.07,0.00027397,2]
[322181571,1712866241669,-1728.35,0.00027397,2]
[322181573,1712866241678,-500.0,0.00027397,2]
[322181575,1712866241687,-500.0,0.00027397,2]
[322181577,1712866241697,-500.0,0.00027397,2]
[322181579,1712866241706,-500.0,0.00027397,2]
[322181581,1712866241715,-500.0,0.00027397,2]
[322181583,1712866241725,-533.41475925,0.00027397,2]
[322181584,1712866241734,-500.0,0.00027397,2]
[322181586,1712866241743,-500.0,0.00027397,2]
[322181588,1712866241752,-500.0,0.00027397,2]
[322181590,1712866241761,-500.0,0.00027397,2]
[322181592,1712866241771,-551.1,0.00027397,2]
[322181594,1712866241780,-500.0,0.00027397,2]
[322181596,1712866241789,-1307.13,0.00027397,2]
[322181598,1712866241798,-693.72,0.00027397,2]
[322181600,1712866241808,-500.0,0.00027397,2]
[322181602,1712866241817,-500.0,0.00027397,2]
[322181604,1712866241827,-891.7,0.00027397,2]
[322181606,1712866241837,-500.0,0.00027397,2]
[322181608,1712866241846,-500.0,0.00027397,2]
[322181610,1712866241855,-500.0,0.00027397,2]
[322181612,1712866241864,-569.32,0.00027397,2]
[322181614,1712866241874,-521.17,0.00027397,2]
[322181616,1712866241883,-500.0,0.00027397,2]
[322181618,1712866241893,-500.0,0.00027397,2]
[322181621,1712866241902,-500.0,0.00027397,2]
[322181623,1712866241912,-1535.36,0.00027397,2]
[322181625,1712866241921,-812.35,0.00027397,2]
[322181627,1712866241931,-500.0,0.00027397,2]
[322181629,1712866241940,-500.0,0.00027397,2]
[322181630,1712866241950,-500.0,0.00027397,2]
[322181632,1712866241959,-500.0,0.00027397,2]
[322181634,1712866241968,-500.0,0.00027397,2]
[322181636,1712866241977,-568.24,0.00027397,2]
[322181638,1712866241986,-500.0,0.00027397,2]
[322181640,1712866241996,-500.0,0.00027397,2]
[322181641,1712866242005,-500.0,0.00027397,2]
[322181642,1712866242014,-728.92,0.00027397,2]
[322181643,1712866242023,-500.0,0.00027397,2]
[322181644,1712866242032,-500.0,0.00027397,2]
[322181646,1712866242041,-500.0,0.00027397,2]
[322181648,1712866242050,-500.0,0.00027397,2]
[322181650,1712866242059,-584.91,0.00027397,2]
[322181652,1712866242068,-500.0,0.00027397,2]
[322181654,1712866242078,-1293.36,0.00027397,2]
[322181656,1712866242087,-500.0,0.00027397,2]
[322181658,1712866242096,-500.0,0.00027397,2]
[322181660,1712866242105,-500.0,0.00027397,2]
[322181662,1712866242115,-500.0,0.00027397,2]
[322181664,1712866242125,-500.0,0.00027397,2]
[322181666,1712866242134,-500.0,0.00027397,2]
[322181668,1712866242143,-500.0,0.00027397,2]
[322181670,1712866242153,-500.0,0.00027397,2]
[322181672,1712866242162,-500.0,0.00027397,2]
[322181674,1712866242171,-692.51,0.00027397,2]
[322181676,1712866242181,-500.0,0.00027397,2]
[322181678,1712866242190,-1630.17,0.00027397,2]
[322181680,1712866242199,-500.0,0.00027397,2]
[322181682,1712866242208,-812.07,0.00027397,2]
[322181684,1712866242217,-500.0,0.00027397,2]
[322181685,1712866242227,-500.0,0.00027397,2]
[322181687,1712866242236,-500.0,0.00027397,2]
[322181689,1712866242246,-500.0,0.00027397,2]
[322181691,1712866242256,-500.0,0.00027397,2]
[322181693,1712866242266,-500.0,0.00027397,2]
[322181695,1712866242276,-500.0,0.00027397,2]
[322181697,1712866242286,-500.0,0.00027397,2]
[322181699,1712866242296,-500.0,0.00027397,2]
[322181701,1712866242309,-570.24,0.00027397,2]
[322181703,1712866242320,-599.20107632,0.00027397,2]
[322181705,1712866242330,-500.0,0.00027397,2]
[322181707,1712866242339,-500.0,0.00027397,2]
[322181709,1712866242350,-745.69,0.00027397,2]
[322181711,1712866242359,-500.0,0.00027397,2]
[322181713,1712866242369,-618.24337132,0.00027397,2]
[322181715,1712866242378,-500.0,0.00027397,2]
[322181717,1712866242389,-500.0,0.00027397,2]
[322181719,1712866242400,-500.0,0.00027397,2]
[322181721,1712866242409,-500.0,0.00027397,2]
[322181723,1712866242419,-500.0,0.00027397,2]
[322181725,1712866242429,-331.45,0.00027397,2]
[322181727,1712866242438,-500.0,0.00027397,2]
[322181730,1712866242447,-500.0,0.00027397,2]
[322181731,1712866242456,-500.0,0.00027397,2]
[322181734,1712866242466,-1372.95,0.00027397,2]
[322181735,1712866242475,-500.0,0.00027397,2]
[322181737,1712866242484,-1242.69,0.00027397,2]
[322181739,1712866242494,-500.0,0.00027397,2]
[322181742,1712866242504,-500.0,0.00027397,2]
[322181744,1712866242518,-500.0,0.00027397,2]
[322181746,1712866242527,-500.0,0.00027397,2]
[322181747,1712866242537,-500.0,0.00027397,2]
[322181749,1712866242546,-1173.35,0.00027397,2]
[322181751,1712866242555,-500.0,0.00027397,2]
[322181753,1712866242566,-500.0,0.00027397,2]
[322181755,1712866242576,-500.0,0.00027397,2]
[322181757,1712866242586,-500.0,0.00027397,2]
[322181759,1712866242595,-500.0,0.00027397,2]
[322181762,1712866242606,-500.0,0.00027397,2]
[322181764,1712866242617,-500.0,0.00027397,2]
[322181766,1712866242627,-1888.3,0.00027397,2]
[322181768,1712866242638,-500.0,0.00027397,2]
[322181770,1712866242647,-1191.36,0.00027397,2]
[322181772,1712866242655,-500.0,0.00027397,2]
[322181774,1712866242665,-1572.47,0.00027397,2]
[322181776,1712866242674,-500.0,0.00027397,2]
[322181778,1712866242683,-500.0,0.00027397,2]
[322181780,1712866242692,-1236.41,0.00027397,2]
[322181782,1712866242702,-500.0,0.00027397,2]
[322181784,1712866242712,-500.0,0.00027397,2]
[322181786,1712866242722,-500.0,0.00027397,2]
[322181788,1712866242732,-500.0,0.00027397,2]
[322181790,1712866242742,-500.0,0.00027397,2]
[322181792,1712866242751,-1108.31,0.00027397,2]
[322181794,1712866242760,-500.0,0.00027397,2]
[322181796,1712866242770,-500.0,0.00027397,2]
[322181798,1712866242780,-1141.52,0.00027397,2]
[322181800,1712866242790,-818.3,0.00027397,2]
[322181802,1712866242800,-500.0,0.00027397,2]
[322181804,1712866242809,-500.0,0.00027397,2]
[322181806,1712866242820,-500.0,0.00027397,2]
[322181808,1712866242831,-500.0,0.00027397,2]
[322181810,1712866242841,-515.51,0.00027397,2]
[322181812,1712866242850,-560.75,0.00027397,2]
[322181814,1712866242859,-500.0,0.00027397,2]
[322181816,1712866242870,-500.0,0.00027397,2]
[322181819,1712866242881,-422.3357206,0.00027397,2]
[322181821,1712866242891,-500.0,0.00027397,2]
[322181823,1712866242901,-500.0,0.00027397,2]
[322181825,1712866242912,-500.0,0.00027397,2]
[322181827,1712866242924,-500.0,0.00027397,2]
[322181830,1712866242935,-500.0,0.00027397,2]
[322181832,1712866242945,-500.0,0.00027397,2]
[322181834,1712866242957,-500.0,0.00027397,2]
[322181836,1712866242967,-1012.82,0.00027397,2]
[322181838,1712866242977,-500.0,0.00027397,2]
[322181840,1712866242986,-500.0,0.00027397,2]
[322181842,1712866242998,-267.00195889,0.00027397,2]
[322181845,1712866243007,-500.0,0.00027397,2]
[322181846,1712866243017,-606.62,0.00027397,2]
[322181847,1712866243028,-1642.01,0.00027397,2]
[322181848,1712866243037,-500.0,0.00027397,2]
[322181849,1712866243047,-500.0,0.00027397,2]
[322181851,1712866243057,-500.0,0.00027397,2]
[322181852,1712866243067,-500.0,0.00027397,2]
[322181854,1712866243076,-500.0,0.00027397,2]
[322181856,1712866243086,-639.29,0.00027397,2]
[322181858,1712866243095,-731.62,0.00027397,2]
[322181861,1712866243105,-541.15395965,0.00027397,2]
[322181862,1712866243114,-500.0,0.00027397,2]
[322181864,1712866243123,-1110.6,0.00027397,2]
[322181866,1712866243133,-500.0,0.00027397,2]
[322181867,1712866243142,-500.0,0.00027397,2]
[322181868,1712866243152,-500.0,0.00027397,2]
[322181869,1712866243161,-500.0,0.00027397,2]
[322181870,1712866243170,-583.7,0.00027397,2]
[322181872,1712866243179,-1997.53,0.00027397,2]
[322181874,1712866243188,-500.0,0.00027397,2]
[322181875,1712866243197,-500.0,0.00027397,2]
[322181877,1712866243207,-500.0,0.00027397,2]
[322181878,1712866243216,-500.0,0.00027397,2]
[322181879,1712866243226,-500.0,0.00027397,2]
[322181880,1712866243236,-500.0,0.00027397,2]
[322181881,1712866243246,-652.59,0.00027397,2]
[322181882,1712866243255,-546.56591022,0.00027397,2]
[322181883,1712866243265,-2716.5,0.00027397,2]
[322181884,1712866243274,-500.0,0.00027397,2]
[322181885,1712866243284,-2096.15,0.00027397,2]
[322181886,1712866243293,-500.0,0.00027397,2]
[322181887,1712866243303,-500.0,0.00027397,2]
[322181888,1712866243317,-500.0,0.00027397,2]
[322181889,1712866243326,-500.0,0.00027397,2]
[322181890,1712866243337,-500.0,0.00027397,2]
[322181891,1712866243347,-500.0,0.00027397,2]
[322181892,1712866243356,-500.0,0.00027397,2]
[322181893,1712866243365,-500.0,0.00027397,2]
[322181894,1712866243374,-500.0,0.00027397,2]
[322181895,1712866243383,-500.0,0.00027397,2]
[322181896,1712866243394,-500.0,0.00027397,2]
[322181897,1712866243404,-1105.5,0.00027397,2]
[322181898,1712866243413,-1383.41,0.00027397,2]
[322181899,1712866243494,-500.0,0.00027397,2]
[322181900,1712866243504,-500.0,0.00027397,2]
[322181901,1712866243513,-500.0,0.00027397,2]
[322181902,1712866243522,-702.78,0.00027397,2]
[322181903,1712866243532,-500.0,0.00027397,2]
[322181904,1712866243541,-500.0,0.00027397,2]
[322181905,1712866243551,-500.0,0.00027397,2]
[322181906,1712866243560,-966.39,0.00027397,2]
[322181907,1712866243570,-500.0,0.00027397,2]
[322181908,1712866243579,-500.0,0.00027397,2]
[322181909,1712866243590,-500.0,0.00027397,2]
[322181910,1712866243599,-326.90183837,0.00027397,2]
[322181911,1712866243608,-500.0,0.00027397,2]
[322181912,1712866243617,-500.0,0.00027397,2]
[322181913,1712866243627,-500.0,0.00027397,2]
[322181914,1712866243637,-500.0,0.00027397,2]
[322181915,1712866243646,-500.0,0.00027397,2]
[322181916,1712866243656,-500.0,0.00027397,2]
[322181917,1712866243666,-1189.02,0.00027397,2]
[322181918,1712866243676,-500.0,0.00027397,2]
[322181919,1712866243685,-2050.19,0.00027397,2]
[322181920,1712866243695,-500.0,0.00027397,2]
[322181921,1712866243704,-500.0,0.00027397,2]
[322181922,1712866243714,-500.0,0.00027397,2]
[322181923,1712866243722,-500.0,0.00027397,2]
[322181924,1712866243732,-582.16,0.00027397,2]
[322181925,1712866243742,-876.28,0.00027397,2]
[322181926,1712866243752,-500.0,0.00027397,2]
[322181927,1712866243761,-1247.32,0.00027397,2]
[322181928,1712866243770,-500.0,0.00027397,2]
[322181929,1712866243780,-317.90466902,0.00027397,2]
[322181930,1712866243789,-500.0,0.00027397,2]
[322181931,1712866243800,-500.0,0.00027397,2]
[322181932,1712866243810,-500.0,0.00027397,2]
[322181933,1712866243820,-855.58,0.00027397,2]
[322181934,1712866243831,-500.0,0.00027397,2]
[322181935,1712866243842,-500.0,0.00027397,2]
[322181936,1712866243851,-500.0,0.00027397,2]
[322181937,1712866243860,-1239.31,0.00027397,2]
[322181938,1712866243870,-408.07239987,0.00027397,2]
[322181939,1712866243880,-745.12,0.00027397,2]
[322181940,1712866243890,-300.0,0.00027397,2]
[322181941,1712866243899,-150.0,0.00027397,2]
[322181942,1712866243909,-500.0,0.00027397,2]
[322181943,1712866243918,-2556.24,0.00027397,2]
[322181944,1712866243929,-269.07519245,0.00027397,2]
[322181945,1712866243939,-866.37,0.00027397,2]
[322181946,1712866243948,-500.0,0.00027397,2]
[322181947,1712866243958,-500.0,0.00027397,2]
[322181948,1712866243968,-500.0,0.00027397,2]
[322181949,1712866243977,-500.0,0.00027397,2]
[322181950,1712866243986,-500.0,0.00027397,2]
[322181951,1712866243996,-500.0,0.00027397,2]
[322181952,1712866244005,-500.0,0.00027397,2]
[322181953,1712866244014,-500.0,0.00027397,2]
[322181954,1712866244023,-600.68114521,0.00027397,2]
[322181955,1712866244032,-991.83,0.00027397,2]
[322181956,1712866244041,-500.0,0.00027397,2]
[322181957,1712866244050,-500.0,0.00027397,2]
[322181958,1712866244060,-500.0,0.00027397,2]
[322181959,1712866244069,-500.0,0.00027397,2]
[322181960,1712866244078,-500.0,0.00027397,2]
[322181961,1712866244088,-500.0,0.00027397,2]
[322181962,1712866244097,-500.0,0.00027397,2]
[322181963,1712866244106,-5000.0,0.00027397,2]
[322181964,1712866244115,-500.0,0.00027397,2]
[322181965,1712866244125,-500.0,0.00027397,2]
[322181966,1712866244135,-1045.55,0.00027397,2]
[322181967,1712866244145,-500.0,0.00027397,2]
[322181968,1712866244154,-782.09,0.00027397,2]
[322181969,1712866244164,-500.0,0.00027397,2]
[322181970,1712866244175,-500.0,0.00027397,2]
[322181971,1712866244186,-631.55,0.00027397,2]
[322181972,1712866244196,-500.0,0.00027397,2]
[322181973,1712866244206,-500.0,0.00027397,2]
[322181974,1712866244215,-500.0,0.00027397,2]
[322181975,1712866244225,-1904.95,0.00027397,2]
[322181976,1712866244235,-1002.26,0.00027397,2]
[322181977,1712866244244,-500.0,0.00027397,2]
[322181978,1712866244254,-500.0,0.00027397,2]
[322181979,1712866244263,-500.0,0.00027397,2]
[322181980,1712866244272,-500.0,0.00027397,2]
[322181981,1712866244281,-500.0,0.00027397,2]
[322181982,1712866244291,-500.0,0.00027397,2]
[322181983,1712866244301,-500.0,0.00027397,2]
[322181984,1712866244313,-500.0,0.00027397,2]
[322181985,1712866244323,-500.0,0.00027397,2]
[322181986,1712866244333,-523.61,0.00027397,2]
[322181987,1712866244344,-500.0,0.00027397,2]
[322181988,1712866244356,-500.0,0.00027397,2]
[322181989,1712866244366,-1829.68,0.00027397,2]
[322181990,1712866244375,-500.0,0.00027397,2]
[322181991,1712866244385,-500.0,0.00027397,2]
[322181992,1712866244394,-824.24,0.00027397,2]
[322181993,1712866244406,-500.0,0.00027397,2]
[322181994,1712866244416,-500.0,0.00027397,2]
[322181995,1712866244425,-500.0,0.00027397,2]
[322181996,1712866244435,-500.0,0.00027397,2]
[322181997,1712866244445,-500.0,0.00027397,2]
[322181998,1712866244455,-500.0,0.00027397,2]
[322181999,1712866244467,-1435.91,0.00027397,2]
[322182000,1712866244476,-500.0,0.00027397,2]
[322182001,1712866244486,-2009.27,0.00027397,2]
[322182002,1712866244496,-743.03,0.00027397,2]
[322182003,1712866244514,-2007.76,0.00027397,2]
[322182004,1712866244523,-500.0,0.00027397,2]
[322182005,1712866244533,-500.0,0.00027397,2]
[322182006,1712866244542,-1141.2,0.00027397,2]
[322182007,1712866244552,-505.98968558,0.00027397,2]
[322182008,1712866244561,-500.0,0.00027397,2]
[322182009,1712866244570,-500.0,0.00027397,2]
[322182010,1712866244580,-180.53124693,0.00027397,2]
[322182011,1712866244590,-500.0,0.00027397,2]
[322182012,1712866244599,-434.48106713,0.00027397,2]
[322182013,1712866244608,-500.0,0.00027397,2]
[322182014,1712866244617,-500.0,0.00027397,2]
[322182015,1712866244626,-981.46,0.00027397,2]
[322182016,1712866244636,-500.0,0.00027397,2]
[322182017,1712866244645,-500.0,0.00027397,2]
[322182018,1712866244655,-500.0,0.00027397,2]
[322182019,1712866244664,-500.0,0.00027397,2]
[322182020,1712866244674,-533.64202957,0.00027397,2]
[322182021,1712866244683,-500.0,0.00027397,2]
[322182022,1712866244692,-500.0,0.00027397,2]
[322182023,1712866244701,-500.0,0.00027397,2]
[322182024,1712866244710,-500.0,0.00027397,2]
[322182025,1712866244720,-1101.81,0.00027397,2]
[322182026,1712866244729,-500.0,0.00027397,2]
[322182027,1712866244739,-500.0,0.00027397,2]
[322182028,1712866244749,-500.0,0.00027397,2]
[322182029,1712866244759,-500.0,0.00027397,2]
[322182030,1712866244769,-500.0,0.00027397,2]
[322182031,1712866244779,-500.0,0.00027397,2]
[322182032,1712866244789,-500.0,0.00027397,2]
[322182033,1712866244799,-500.0,0.00027397,2]
[322182034,1712866244808,-500.0,0.00027397,2]
[322182035,1712866244818,-500.0,0.00027397,2]
[322182036,1712866244828,-766.86,0.00027397,2]
[322182037,1712866244837,-500.0,0.00027397,2]
[322182038,1712866244846,-500.0,0.00027397,2]
[322182039,1712866244856,-500.0,0.00027397,2]
[322182040,1712866244865,-1735.26,0.00027397,2]
[322182041,1712866244875,-500.0,0.00027397,2]
[322182042,1712866244884,-500.0,0.00027397,2]
[322182043,1712866244894,-500.0,0.00027397,2]
[322182044,1712866244904,-500.0,0.00027397,2]
[322182045,1712866244913,-500.0,0.00027397,2]
[322182046,1712866244922,-513.73528044,0.00027397,2]
[322182047,1712866244931,-500.0,0.00027397,2]
[322182048,1712866244941,-502.06554399,0.00027397,2]
[322182049,1712866244950,-1889.56073,0.00027397,2]
[322182050,1712866244959,-500.0,0.00027397,2]
[322182051,1712866244970,-500.0,0.00027397,2]
[322182052,1712866244980,-853.76,0.00027397,2]
[322182053,1712866244989,-500.0,0.00027397,2]
[322182054,1712866244998,-500.0,0.00027397,2]
[322182055,1712866245008,-500.0,0.00027397,2]
[322182056,1712866245017,-500.0,0.00027397,2]
[322182057,1712866245026,-874.44,0.00027397,2]
[322182058,1712866245035,-500.0,0.00027397,2]
[322182059,1712866245045,-500.0,0.00027397,2]
[322182060,1712866245054,-500.0,0.00027397,2]
[322182061,1712866245063,-500.0,0.00027397,2]
[322182062,1712866245073,-500.0,0.00027397,2]
[322182063,1712866245082,-454.15241677,0.00027397,2]
[322182064,1712866245092,-500.0,0.00027397,2]
[322182065,1712866245101,-500.0,0.00027397,2]
[322182066,1712866245111,-500.0,0.00027397,2]
[322182067,1712866245119,-572.85635404,0.00027397,2]
[322182068,1712866245128,-500.0,0.00027397,2]
[322182069,1712866245138,-500.0,0.00027397,2]
[322182070,1712866245147,-500.0,0.00027397,2]
[322182071,1712866245157,-500.0,0.00027397,2]
[322182072,1712866245166,-500.0,0.00027397,2]
[322182073,1712866245175,-500.0,0.00027397,2]
[322182074,1712866245186,-500.0,0.00027397,2]
[322182075,1712866245195,-500.0,0.00027397,2]
[322182076,1712866245205,-500.0,0.00027397,2]
[322182077,1712866245214,-500.0,0.00027397,2]
[322182078,1712866245225,-166.57374161,0.00027397,2]
[322182079,1712866245235,-500.0,0.00027397,2]
[322182080,1712866245246,-840.38,0.00027397,2]
[322182081,1712866245257,-1194.17,0.00027397,2]
[322182082,1712866245267,-2890.68,0.00027397,2]
[322182083,1712866245277,-500.0,0.00027397,2]
[322182084,1712866245287,-553.56,0.00027397,2]
[322182086,1712866245297,-500.0,0.00027397,2]
[322182088,1712866245310,-526.62046044,0.00027397,2]
[322182090,1712866245320,-500.0,0.00027397,2]
[322182092,1712866245329,-500.0,0.00027397,2]
[322182093,1712866245340,-500.0,0.00027397,2]
[322182095,1712866245351,-627.79,0.00027397,2]
[322182097,1712866245361,-500.0,0.00027397,2]
[322182098,1712866245370,-1163.4,0.00027397,2]
[322182099,1712866245379,-500.0,0.00027397,2]
[322182100,1712866245391,-198.19401729,0.00027397,2]
[322182101,1712866245401,-500.0,0.00027397,2]
[322182102,1712866245410,-150.0,0.00027397,2]
[322182103,1712866245419,-500.0,0.00027397,2]
[322182104,1712866245429,-500.0,0.00027397,2]
[322182105,1712866245439,-500.0,0.00027397,2]
[322182106,1712866245448,-27146.98,0.00027397,2]
[322182107,1712866245458,-500.0,0.00027397,2]
[322182108,1712866245468,-500.0,0.00027397,2]
[322182109,1712866245478,-500.0,0.00027397,2]
[322182110,1712866245487,-843.9,0.00027397,2]
[322182111,1712866245499,-8521.38,0.00027397,2]
[322182112,1712866245508,-500.0,0.00027397,2]
[322182113,1712866245518,-500.0,0.00027397,2]
[322182114,1712866245528,-500.0,0.00027397,2]
[322182115,1712866245538,-500.0,0.00027397,2]
[322182116,1712866245547,-1061.37,0.00027397,2]
[322182117,1712866245557,-500.0,0.00027397,2]
[322182118,1712866245567,-500.0,0.00027397,2]
[322182119,1712866245578,-6259.08,0.00027397,2]
[322182120,1712866245589,-214.26130826,0.00027397,2]
[322182121,1712866245598,-1619.15,0.00027397,2]
[322182122,1712866245608,-508.28,0.00027397,2]
[322182123,1712866245617,-2254.14,0.00027397,2]
[322182124,1712866245627,-500.0,0.00027397,2]
[322182125,1712866245637,-355.35701287,0.00027397,2]
[322182126,1712866245647,-753.86,0.00027397,2]
[322182127,1712866245658,-6254.21,0.00027397,2]
[322182128,1712866245668,-6238.81,0.00027397,2]
[322182129,1712866245678,-521.47642031,0.00027397,2]
[322182130,1712866245689,-770.01,0.00027397,2]
[322182131,1712866245700,-500.0,0.00027397,2]
[322182132,1712866245710,-500.0,0.00027397,2]
[322182133,1712866245719,-761.66,0.00027397,2]
[322182134,1712866245729,-500.0,0.00027397,2]
[322182135,1712866245738,-500.0,0.00027397,2]
[322182136,1712866245747,-500.0,0.00027397,2]
[322182137,1712866245757,-2369.78,0.00027397,2]
[322182138,1712866245767,-500.0,0.00027397,2]
[322182139,1712866245776,-507.06894005,0.00027397,2]
[322182140,1712866245785,-500.0,0.00027397,2]
[322182141,1712866245796,-500.0,0.00027397,2]
[322182142,1712866245806,-1115.09,0.00027397,2]
[322182143,1712866245815,-500.0,0.00027397,2]
[322182144,1712866245825,-500.0,0.00027397,2]
[322182145,1712866245837,-10990.78,0.00027397,2]
[322182146,1712866245848,-1645.65,0.00027397,2]
[322182147,1712866245858,-500.0,0.00027397,2]
[322182148,1712866245868,-500.0,0.00027397,2]
[322182149,1712866245878,-4380.45,0.00027397,2]
[322182150,1712866245887,-500.0,0.00027397,2]
[322182152,1712866245898,-500.0,0.00027397,2]
[322182153,1712866245910,-500.0,0.00027397,2]
[322182154,1712866245922,-800.96,0.00027397,2]
[322182155,1712866245933,-628.90989534,0.00027397,2]
[322182156,1712866245943,-500.0,0.00027397,2]
[322182157,1712866245953,-2787.2,0.00027397,2]
[322182158,1712866245963,-500.0,0.00027397,2]
[322182159,1712866245972,-500.0,0.00027397,2]
[322182161,1712866245983,-536.27644778,0.00027397,2]
[322182163,1712866245993,-500.0,0.00027397,2]
[322182165,1712866246003,-500.0,0.00027397,2]
[322182167,1712866246012,-500.0,0.00027397,2]
[322182169,1712866246022,-6266.29,0.00027397,2]
[322182171,1712866246032,-1566.71,0.00027397,2]
[322182173,1712866246041,-500.0,0.00027397,2]
[322182175,1712866246050,-500.0,0.00027397,2]
[322182177,1712866246059,-500.0,0.00027397,2]
[322182179,1712866246068,-500.0,0.00027397,2]
[322182181,1712866246078,-523.15,0.00027397,2]
[322182183,1712866246089,-500.0,0.00027397,2]
[322182185,1712866246098,-500.0,0.00027397,2]
[322182187,1712866246107,-500.0,0.00027397,2]
[322182189,1712866246117,-1938.1,0.00027397,2]
[322182191,1712866246126,-500.0,0.00027397,2]
[322182193,1712866246137,-605.01,0.00027397,2]
[322182195,1712866246146,-500.0,0.00027397,2]
[322182197,1712866246155,-973.92,0.00027397,2]
[322182199,1712866246164,-500.0,0.00027397,2]
[322182201,1712866246175,-1400.27,0.00027397,2]
[322182203,1712866246184,-1739.79,0.00027397,2]